{"text_format":"1","workbook":"xlsx","n_sheets":8,"sheets":["Anykščiai","Biržai","Druskininkai","Dubrava","Ignalina","Jurbarkas","Kazlų Rūda","Kretinga"],"not_rendered":{"charts":0,"images":0,"macros":0,"external_links":0,"defined_names":0,"comments":0,"pivot_tables":0},"unopened":[],"bounds":{"document_bytes":16777216,"sheet_cells":100000,"rows_first":2000,"rows_last":500,"rows_between":2000,"halvings":0,"cell_chars":16384,"cell_head_chars":4096},"cells_cut":0,"cells_raw":0,"read":"whole","date_system":"1900"}

{"sheet":"Anykščiai","index":0,"n_rows":21,"n_cols":16,"rows_kept":21,"cut":false,"hidden":false,"merged":[[19,0,19,2],[20,0,20,2],[3,0,3,2],[0,0,0,15],[13,0,14,0],[13,1,14,1],[13,2,14,2],[13,3,13,9],[1,3,1,15],[10,0,10,2],[11,0,11,2]]}
["VĮ Valstybinių miškų urėdijos Anykščių regioninio padalinio informacija apie perkamus miškininkystės paslaugų kiekius 2025 metams"]
["Eil. ","Paslaugų grupės ir paslaugų pavadinimai",null,"Preliminarios paslaugų apimtys"]
[1,"Želdaviečių paruošimas miškų sodinimui, želdinių ir žėlinių priežiūra, jaunuolynų ugdymas, griovių šlaitų ir pagriovių, pakelių, kvartalinių ir ribinių linijų priežiūra","Mato vnt.","Mikierių  girininkija","Troškūnų girininkija 1","Mickūnų  girininkija  1 ","Mickūnų  girininkija 2","Mickūnų  girininkija 3","Mickūnų  girininkija 4","Vyžuonų girininkija 1 ","Vyžuonų girininkija 2","Kuktiškių girininkija 1","Kuktiškių girininkija 2"," Kavarsko girininkija 1"," Kavarsko girininkija 2","Dubingių girininkija 1"]
["Pirkimo objekto dalies numeris",null,null,1,2,3,4,5,6,7,8,9,10,11,12,13]
["1.","Želdavietės paruošimas miško sodmenų sodinimui šalinant nepageidaujamus medžius, krūmus, žolinę augmeniją","ha"]
["2.","Miško želdinių ir žėlinių  priežiūra šalinant žabus ir žolinę augmeniją","ha",null,null,null,25,26,20,27,20,null,null,null,null,27]
["3.","Jaunuolynų ugdymas ir/ar retinimo kirtimai, negaminant likvidinės medienos ","ha",null,null,20,19.7,null,null,6.5,10,15,17.7,20,15.8]
["4.","Griovių šlaitų ir pagriovių priežiūra","ha",null,2.4,null,null,null,0.8,null,null,0.4,null,2.4]
["5.","Pakelių priežiūra","km"]
["6.","kvartalinių ir ribinių linijų priežūra","km",10,null,null,null,null,11,5,5,null,null,5,15]
["Preliminari 1 metų suma",null,null,{"$f":"+D5*301+D6*263+D7*299+D8*301+D9*53+D10*126","v":1260},{"$f":"+E5*301+E6*263+E7*299+E8*301+E9*53+E10*126","v":722.4},5980,12465.3,6838,6886.8,9674.5,8880,4605.3999999999996,5292.3,7332.4,6614.2,7101]
["Maksimali POD suma",null,null,{"$f":"+D11*3*1.3","v":4914},{"$f":"+E11*3*1.3","v":2817.3599999999997},23322,48614.669999999991,26668.2,26858.520000000004,37730.550000000003,34632,17961.059999999998,20639.97,28596.359999999997,25795.379999999997,27693.9]
[]
["3.","Miško sodmenų sodinimas, želdinių ir žėlinių medelių ir jų liemenų apsauga nuo kanopinių žvėrių bei vabzdžių daromos žalos  ","Mato vnt.","Preliminarios paslaugų apimtys"]
[null,null,null,"Troškūnų girininkija 2","Vyžuonų girininkija 3","Kuktiškių girininkija 3","Kuktiškių girininkija 4","Kuktiškių girininkija 5","Dubingių girininkija 2","Dubingių girininkija 3"]
[null,"Pirkimo objekto numeris",null,14,15,16,17,18,19,20]
["8.","Miško atkūrimas, įveisimas ir atsodinimas (medelių ir krūmų sodinimas)","tūkst. vnt.",null,34,10,30,38,54]
["9.","Želdinių, žėlinių apsauga nuo kanopinių žvėrių bei vabzdžių daromos žalos ","tūkst. vnt.",28,null,null,null,null,null,85.7]
["10.","Želdinių, žėlinių ir medelių kamienų apsauga nuo kanopinių žvėrių daromos žalos","tūkst. vnt."]
["Preliminari 1 metų suma",null,null,{"$f":"+D17*178+D18*27+D19*390","v":756},{"$f":"+E17*178+E18*27+E19*390","v":6052},1780,5340,6764,9612,2313.9]
["Maksimali POD suma",null,null,{"$f":"+D20*3*1.3","v":2948.4},{"$f":"+E20*3*1.3","v":23602.799999999999},6942,20826,26379.600000000002,37486.800000000003,9024.2100000000009]

{"sheet":"Biržai","index":1,"n_rows":14,"n_cols":16,"rows_kept":14,"cut":false,"hidden":false,"merged":[[0,0,0,13],[3,0,3,2],[1,3,1,15],[10,0,10,2],[11,0,11,2]]}
["VĮ Valstybinių miškų urėdijos Biržų regioninio padalinio informacija apie perkamus miškininkystės paslaugų kiekius 2025 metams"]
["Eil. ","Paslaugų grupės ir paslaugų pavadinimai",null,"Preliminarios paslaugų apimtys"]
[1,"Želdaviečių paruošimas miškų sodinimui, želdinių ir žėlinių priežiūra, jaunuolynų ugdymas, griovių šlaitų ir pagriovių, pakelių, kvartalinių ir ribinių linijų priežiūra","Mato vnt.","Biržų RP teritorija 1","Biržų RP teritorija 2","Biržų RP teritorija 3","Biržų RP teritorija 4","Biržų RP teritorija 5","Biržų RP teritorija 6","Biržų RP teritorija 7","Biržų RP teritorija 8","Biržų RP teritorija 9","Biržų RP teritorija 10","Biržų RP teritorija 11","Biržų RP teritorija 12","Biržų RP teritorija 13"]
["Pirkimo objekto dalies numeris",null,null,21,22,23,24,25,26,27,28,29,30,31,32,33]
["1.","Želdavietės paruošimas miško sodmenų sodinimui šalinant nepageidaujamus medžius, krūmus, žolinę augmeniją","ha",0,0,0,0,0,0,0,0,0,0,0,0,0]
["2.","Miško želdinių ir žėlinių  priežiūra šalinant žabus ir žolinę augmeniją","ha",16,16,16,16,16,8,8,8,8,8,8,8,8]
["3.","Jaunuolynų ugdymas ir/ar retinimo kirtimai, negaminant likvidinės medienos ","ha",10,10,10,10,10,5,5,5,5,5,5,5,5]
["4.","Griovių šlaitų ir pagriovių priežiūra","ha",0,0,0,0,0,0,0,0,0,0,0,0,0]
["5.","Pakelių priežiūra","km",0,0,0,0,0,0,0,0,0,0,0,0,0]
["6.","kvartalinių ir ribinių linijų priežūra","km",0,0,0,0,0,0,0,0,0,0,0,0,0]
["Preliminari 1 metų suma",null,null,{"$f":"+D5*301+D6*263+D7*299+D8*301+D9*53+D10*126","v":7198},{"$f":"+E5*301+E6*263+E7*299+E8*301+E9*53+E10*126","v":7198},7198,7198,7198,3599,3599,3599,3599,3599,3599,3599,3599]
["Maksimali POD suma",null,null,{"$f":"+D11*3*1.3","v":28072.2},{"$f":"+E11*3*1.3","v":28072.2},28072.2,28072.2,28072.2,14036.1,14036.1,{"$f":"+K11*3*1.3","v":14036.1},{"$f":"+L11*3*1.3","v":14036.1},{"$f":"+M11*3*1.3","v":14036.1},{"$f":"+N11*3*1.3","v":14036.1},{"$f":"+O11*3*1.3","v":14036.1},14036.1]
[]
[null,"*Latvelių,  Spalviškių, Būginių, Pasvalio, Kriklinių girininkijų teritorijos"]

{"sheet":"Druskininkai","index":2,"n_rows":35,"n_cols":10,"rows_kept":35,"cut":false,"hidden":false,"merged":[[22,3,22,4],[13,3,13,7],[24,0,24,2],[29,0,30,0],[29,1,30,1],[29,2,30,2],[29,3,29,9],[13,2,14,2],[15,0,15,2],[22,0,23,0],[22,1,23,1],[22,2,23,2],[0,0,0,12],[3,0,3,2],[1,2,1,9],[13,0,14,0],[13,1,14,1],[33,0,33,2],[34,0,34,2],[31,0,31,2],[10,0,10,2],[11,0,11,2],[19,0,19,2],[20,0,20,2],[26,0,26,2],[27,0,27,2]]}
["VĮ Valstybinių miškų urėdijos Druskininkų regioninio padalinio informacija apie perkamus miškininkystės paslaugų kiekius 2025 m."]
["Eil. ","Paslaugų grupės ir paslaugų pavadinimai","Preliminarios paslaugų apimtys"]
[1,"Želdaviečių paruošimas miškų sodinimui, želdinių ir žėlinių priežiūra, jaunuolynų ugdymas, griovių šlaitų ir pagriovių, pakelių, kvartalinių ir ribinių linijų priežiūra","Mato vnt.","Ančios girininkija","Krosnos girininkija 1","Leipalingio girininkija 1","Latežerio girininkija 1","Grūto girininkija 1","Merkinės girininkija 1","Musteikos girininkija 1"]
["Pirkimo objekto dalies numeris",null,null,34,35,36,37,38,39,40]
["1.","Želdavietės paruošimas miško sodmenų sodinimui šalinant nepageidaujamus medžius, krūmus, žolinę augmeniją","ha",0,0,5,0,0,1,0]
["2.","Miško želdinių ir žėlinių  priežiūra šalinant žabus ir žolinę augmeniją","ha",0,35,0,60,50,120,15]
["3.","Jaunuolynų ugdymas ir/ar retinimo kirtimai, negaminant likvidinės medienos ","ha",20,30,5,60,40,25,5]
["4.","Griovių šlaitų ir pagriovių priežiūra","ha",2,3,0,0,1,0,2]
["5.","Pakelių priežiūra","km",3,5,0,0,0,0,3]
["6.","kvartalinių ir ribinių linijų priežūra","km",10,10,0,2,1,5,3]
["Preliminari 1 metų suma",null,null,{"$f":"+D5*301+D6*263+D7*299+D8*301+D9*53+D10*126","v":8001},{"$f":"+E5*301+E6*263+E7*299+E8*301+E9*53+E10*126","v":20603},3000,33972,25537,39966,6579]
["Maksimali POD suma",null,null,{"$f":"+D11*3*1.3","v":31203.9},{"$f":"+E11*3*1.3","v":80351.7},11700,132490.80000000002,99594.3,155867.4,25658.100000000002]
[]
["3.","Miško sodmenų sodinimas, želdinių ir žėlinių medelių ir jų liemenų apsauga nuo kanopinių žvėrių bei vabzdžių daromos žalos  ","Mato vnt.","Preliminarios paslaugų apimtys"]
[null,null,null,"Krosnos girininkija 2","Musteikos girininkija 2","Leipalingio girininkija 2","Latežerio girininkija 2","Merkinės girininkija 2"]
["Pirkimo objekto dalies numeris",null,null,41,42,43,44,45]
["8.","Miško atkūrimas, įveisimas ir atsodinimas (medelių ir krūmų sodinimas)","tūkst. vnt.",100,50,0,100,0]
["9.","Želdinių, žėlinių apsauga nuo kanopinių žvėrių bei vabzdžių daromos žalos ","tūkst. vnt.",0,0,300,0,200]
["10.","Želdinių, žėlinių ir medelių kamienų apsauga nuo kanopinių žvėrių daromos žalos","tūkst. vnt.",0,0,10,0,0]
["Preliminari 1 metų suma",null,null,{"$f":"+D17*178+D18*27+D19*390","v":17800},{"$f":"+E17*178+E18*27+E19*390","v":8900},12000,{"$f":"+G17*178+G18*27+G19*390","v":17800},{"$f":"+H17*178+H18*27+H19*390","v":5400}]
["Maksimali POD suma",null,null,{"$f":"+D20*3*1.3","v":69420},{"$f":"+E20*3*1.3","v":34710},46800,{"$f":"+G20*3*1.3","v":69420},{"$f":"+H20*3*1.3","v":21060}]
[]
["4.","Želdinių, žėlinių apsauga nuo kanopinių žvėrių daromos žalos, tveriant vielos tinklo tvorą","Mato vnt.","Preliminarios paslaugų apimtys"]
[null,null,null,"Musteikos girininkija 3","Merkinės girininkija 3"]
["Pirkimo objekto dalies numeris",null,null,46,47]
["11.","Želdinių, žėlinių apsauga nuo kanopinių žvėrių daromos žalos, tveriant vielos tinklo tvorą ","m",1500,1000]
["Preliminari 1 metų suma",null,null,{"$f":"+D26*1.85","v":2775},{"$f":"+E26*1.85","v":1850}]
["Maksimali POD suma",null,null,{"$f":"+D27*3*1.3","v":10822.5},{"$f":"+E27*3*1.3","v":7215}]
[]
["5.","Sodmenų transportavimo paslaugos","Mato vnt.","Preliminarios paslaugų apimtys"]
[null,null,null,"Krosnos girininkija 3","Kapčiamiesčio girininkija","Leipalingio girininkija 3","Latežerio girininkija 3","Grūto girininkija 2","Merkinės girininkija 4","Musteikos girininkija 4"]
["Pirkimo objekto dalies numeris",null,null,48,49,50,51,52,53,54]
["12.","Sodmenų transportavimo paslaugos ","km",70,60,60,60,50,50,60]
["Preliminari 1 metų suma",null,null,{"$f":"+D33*1.5","v":105},{"$f":"+E33*1.5","v":90},90,90,75,75,90]
["Maksimali POD suma",null,null,{"$f":"+D34*3*1.3","v":409.5},{"$f":"+E34*3*1.3","v":351},351,351,292.5,292.5,351]

{"sheet":"Dubrava","index":3,"n_rows":28,"n_cols":12,"rows_kept":28,"cut":false,"hidden":false,"merged":[[3,0,3,2],[0,0,0,13],[1,2,1,11],[13,0,14,0],[13,3,13,4],[10,0,10,2],[11,0,11,2],[26,0,26,2],[27,0,27,2],[24,0,24,2],[13,1,14,1],[13,2,14,2],[15,0,15,2],[22,0,23,0],[22,1,23,1],[22,2,23,2],[19,0,19,2],[20,0,20,2]]}
["VĮ Valstybinių miškų urėdijos Dubravos regioninio padalinio informacija apie perkamus miškininkystės paslaugų kiekius 2025 metams"]
["Eil. ","Paslaugų grupės ir paslaugų pavadinimai","Preliminarios paslaugų apimtys"]
[1,"Želdaviečių paruošimas miškų sodinimui, želdinių ir žėlinių priežiūra, jaunuolynų ugdymas, griovių šlaitų ir pagriovių, pakelių, kvartalinių ir ribinių linijų priežiūra","Mato vnt.","Upninkų girininkija","Karmėlavos girininkija","Padauguvos girininkija 1","Sitkūnų girininkija","Ežerėlio girininkija","Vaišvydavos girininkija","Girelės girininkija","Gaižiūnų girininkija","Dubravos padalinys"]
["Pirkimo objekto dalies numeris",null,null,55,56,57,58,59,60,61,62,63]
["1.","Želdavietės paruošimas miško sodmenų sodinimui šalinant nepageidaujamus medžius, krūmus, žolinę augmeniją","ha"]
["2.","Miško želdinių ir žėlinių  priežiūra šalinant žabus ir žolinę augmeniją","ha",100,95,80,70,95,150,30]
["3.","Jaunuolynų ugdymas ir/ar retinimo kirtimai, negaminant likvidinės medienos ","ha",60,55,35,20,60,120,100,15]
["4.","Griovių šlaitų ir pagriovių priežiūra","ha",20,20,null,20,10,10,10,15]
["5.","Pakelių priežiūra","km",null,null,null,null,null,null,null,null,20]
["6.","kvartalinių ir ribinių linijų priežūra","km",45,20,null,null,15,15]
["Preliminari 1 metų suma",null,null,{"$f":"+D5*301+D6*263+D7*299+D8*301+D9*53+D10*126","v":55930},{"$f":"+E5*301+E6*263+E7*299+E8*301+E9*53+E10*126","v":49970},31505,30410,47825,80230,40800,9000,1060]
["Maksimali POD suma",null,null,{"$f":"+D11*3*1.3","v":218127},{"$f":"+E11*3*1.3","v":194883},122869.5,118599,186517.5,312897,159120,35100,4134]
[]
["3.","Miško sodmenų sodinimas, želdinių ir žėlinių medelių ir jų liemenų apsauga nuo kanopinių žvėrių bei vabzdžių daromos žalos  ","Mato vnt.","Preliminarios paslaugų apimtys"]
[null,null,null,"Dubravos regioninis padalinys 1","Padauguvos girininkija 2"]
["Pirkimo objekto dalies numeris",null,null,64,65]
["8.","Miško atkūrimas, įveisimas ir atsodinimas (medelių ir krūmų sodinimas)","tūkst. vnt.",null,90]
["9.","Želdinių, žėlinių apsauga nuo kanopinių žvėrių bei vabzdžių daromos žalos ","tūkst. vnt."]
["10.","Želdinių, žėlinių ir medelių kamienų apsauga nuo kanopinių žvėrių daromos žalos","tūkst. vnt.",12]
["Preliminari 1 metų suma",null,null,{"$f":"+D17*178+D18*27+D19*390","v":4680},{"$f":"+E17*178+E18*27+E19*390","v":16020}]
["Maksimali POD suma",null,null,{"$f":"+D20*3*1.3","v":18252},{"$f":"+E20*3*1.3","v":62478}]
[]
["4.","Želdinių, žėlinių apsauga nuo kanopinių žvėrių daromos žalos, tveriant vielos tinklo tvorą","Mato vnt.","Preliminarios paslaugų apimtys"]
[null,null,null,"Dubravos regioninis padalinys 2"]
["Pirkimo objekto dalies numeris",null,null,66]
["11.","Želdinių, žėlinių apsauga nuo kanopinių žvėrių daromos žalos, tveriant vielos tinklo tvorą ","m",5000]
["Preliminari 1 metų suma",null,null,{"$f":"+D26*1.85","v":9250}]
["Maksimali POD suma",null,null,{"$f":"+D27*3*1.3","v":36075}]

{"sheet":"Ignalina","index":4,"n_rows":12,"n_cols":10,"rows_kept":12,"cut":false,"hidden":false,"merged":[[3,0,3,2],[0,0,0,14],[1,2,1,9],[10,0,10,2],[11,0,11,2]]}
["VĮ Valstybinių miškų urėdijos Ignalinos regioninio padalinio informacija apie perkamus miškininkystės paslaugų kiekius 2025 metams"]
["Eil. ","Paslaugų grupės ir paslaugų pavadinimai","Preliminarios paslaugų apimtys"]
[1,"Želdaviečių paruošimas miškų sodinimui, želdinių ir žėlinių priežiūra, jaunuolynų ugdymas, griovių šlaitų ir pagriovių, pakelių, kvartalinių ir ribinių linijų priežiūra","Mato vnt.","Dūkšto girininkija","Minčiagirės girininkija","Daugėliškio, Tverečiaus girininkija","Gražutės girininkija","Antazavės girininkija 1","Antazavės girininkija 2","Antazavės girininkija 3"]
["Pirkimo objekto dalies numeris",null,null,67,68,69,70,71,72,73]
["1.","Želdavietės paruošimas miško sodmenų sodinimui šalinant nepageidaujamus medžius, krūmus, žolinę augmeniją","ha"]
["2.","Miško želdinių ir žėlinių  priežiūra šalinant žabus ir žolinę augmeniją","ha",90,60,40,85,40,30,15]
["3.","Jaunuolynų ugdymas ir/ar retinimo kirtimai, negaminant likvidinės medienos ","ha",32,21,null,29,18,null,14]
["4.","Griovių šlaitų ir pagriovių priežiūra","ha"]
["5.","Pakelių priežiūra","km"]
["6.","kvartalinių ir ribinių linijų priežūra","km"]
["Preliminari 1 metų suma",null,null,{"$f":"+D5*301+D6*263+D7*299+D8*301+D9*53+D10*126","v":33238},{"$f":"+E5*301+E6*263+E7*299+E8*301+E9*53+E10*126","v":22059},10520,31026,15902,7890,8131]
["Maksimali POD suma",null,null,{"$f":"+D11*3*1.3","v":129628.20000000001},{"$f":"+E11*3*1.3","v":86030.1},41028,121001.40000000001,62017.8,30771,31710.9]

{"sheet":"Jurbarkas","index":5,"n_rows":12,"n_cols":6,"rows_kept":12,"cut":false,"hidden":false,"merged":[[3,0,3,2],[0,0,0,8],[1,2,1,5],[10,0,10,2],[11,0,11,2]]}
["VĮ Valstybinių miškų urėdijos Jurbarko regioninio padalinio informacija apie perkamus miškininkystės paslaugų kiekius 2025 metams"]
["Eil. ","Paslaugų grupės ir paslaugų pavadinimai","Preliminarios paslaugų apimtys"]
[1,"Želdaviečių paruošimas miškų sodinimui, želdinių ir žėlinių priežiūra, jaunuolynų ugdymas, griovių šlaitų ir pagriovių, pakelių, kvartalinių ir ribinių linijų priežiūra","Mato vnt.","Jūravos girininkija","Balandinės girininkija","Kalvelių girininkija"]
["Pirkimo objekto dalies numeris",null,null,74,75,76]
["1.","Želdavietės paruošimas miško sodmenų sodinimui šalinant nepageidaujamus medžius, krūmus, žolinę augmeniją","ha"]
["2.","Miško želdinių ir žėlinių  priežiūra šalinant žabus ir žolinę augmeniją","ha",30,90]
["3.","Jaunuolynų ugdymas ir/ar retinimo kirtimai, negaminant likvidinės medienos ","ha",null,53.9,31]
["4.","Griovių šlaitų ir pagriovių priežiūra","ha",null,10,2]
["5.","Pakelių priežiūra","km"]
["6.","kvartalinių ir ribinių linijų priežūra","km"]
["Preliminari 1 metų suma",null,null,{"$f":"+D5*301+D6*263+D7*299+D8*301+D9*53+D10*126","v":7890},{"$f":"+E5*301+E6*263+E7*299+E8*301+E9*53+E10*126","v":42796.1},9871]
["Maksimali POD suma",null,null,{"$f":"+D11*3*1.3","v":30771},{"$f":"+E11*3*1.3","v":166904.78999999998},38496.9]

{"sheet":"Kazlų Rūda","index":6,"n_rows":28,"n_cols":12,"rows_kept":28,"cut":false,"hidden":false,"merged":[[19,0,19,2],[20,0,20,2],[26,0,26,2],[27,0,27,2],[3,0,3,2],[0,0,0,14],[1,2,1,11],[13,0,14,0],[24,0,24,2],[13,3,13,9],[22,0,23,0],[22,1,23,1],[22,2,23,2],[13,1,14,1],[13,2,14,2],[15,0,15,2],[10,0,10,2],[11,0,11,2]]}
["VĮ Valstybinių miškų urėdijos Kazlų Rūdos  regioninio padalinio informacija apie perkamus miškininkystės paslaugų kiekius 2025 metams"]
["Eil. ","Paslaugų grupės ir paslaugų pavadinimai","Preliminarios paslaugų apimtys"]
[1,"Želdaviečių paruošimas miškų sodinimui, želdinių ir žėlinių priežiūra, jaunuolynų ugdymas, griovių šlaitų ir pagriovių, pakelių, kvartalinių ir ribinių linijų priežiūra","Mato vnt.","Agurkiškės girininkija 1","Bagotosios girininkija 1","Jūrės girininkija 1","Kalvarijos girininkija ","Kazlų Rūdos girininkija 1","Novos girininkija 1","Pajevonio girininkija ","Šunskų girininkija 1","Varnabūdės girininkija 1"]
["Pirkimo objekto dalies numeris",null,null,77,78,79,80,81,82,83,84,85]
["1.","Želdavietės paruošimas miško sodmenų sodinimui šalinant nepageidaujamus medžius, krūmus, žolinę augmeniją","ha",7,6,4,null,null,null,null,25.7]
["2.","Miško želdinių ir žėlinių  priežiūra šalinant žabus ir žolinę augmeniją","ha",143,39,15,6.8000000000000114,27,44,4.5,194.70000000000002,148]
["3.","Jaunuolynų ugdymas ir/ar retinimo kirtimai, negaminant likvidinės medienos ","ha",15,8.8000000000000007,32.200000000000003,7,null,null,1,24.799999999999997,22.700000000000003]
["4.","Griovių šlaitų ir pagriovių priežiūra","ha",40,3.8000000000000007,45.5,2,17,13,4.5,14,2]
["5.","Pakelių priežiūra","km",6,10,null,30,4,20,0,14]
["6.","kvartalinių ir ribinių linijų priežūra","km",32,16,37,8,null,12,24,null,24]
["Preliminari 1 metų suma",null,null,{"$f":"+D5*301+D6*263+D7*299+D8*301+D9*53+D10*126","v":60591},{"$f":"+E5*301+E6*263+E7*299+E8*301+E9*53+E10*126","v":18384},33134.300000000003,7081.4000000000033,12430,18057,5861,71313,49337.3]
["Maksimali POD suma",null,null,{"$f":"+D11*3*1.3","v":236304.9},{"$f":"+E11*3*1.3","v":71697.600000000006},129223.77000000002,27617.460000000017,48477,70422.3,22857.9,278120.7,192415.47000000003]
[]
["3.","Miško sodmenų sodinimas, želdinių ir žėlinių medelių ir jų liemenų apsauga nuo kanopinių žvėrių bei vabzdžių daromos žalos  ","Mato vnt.","Preliminarios paslaugų apimtys"]
[null,null,null,"Agurkiškės girininkija 2","Bagotosios girininkija 2","Jūrės girininkija 2","Kazlų Rūdos girininkija 2","Novos girininkija 2","Šunskų girininkija 2","Varnabūdės girininkija 2"]
["Pirkimo objekto dalies numeris",null,null,86,87,88,89,90,91,92]
["8.","Miško atkūrimas, įveisimas ir atsodinimas (medelių ir krūmų sodinimas)","tūkst. vnt.",104.6,270.5,109.2,270.60000000000002,119.3]
["9.","Želdinių, žėlinių apsauga nuo kanopinių žvėrių bei vabzdžių daromos žalos ","tūkst. vnt.",74,20,50,40,null,82.5]
["10.","Želdinių, žėlinių ir medelių kamienų apsauga nuo kanopinių žvėrių daromos žalos","tūkst. vnt.",null,null,null,3,null,null,48]
["Preliminari 1 metų suma",null,null,{"$f":"+D17*178+D18*27+D19*390","v":20616.8},{"$f":"+E17*178+E18*27+E19*390","v":48689},20787.600000000002,50416.800000000003,21235.399999999998,2227.5,18720]
["Maksimali POD suma",null,null,{"$f":"+D20*3*1.3","v":80405.51999999999},{"$f":"+E20*3*1.3","v":189887.1},81071.64,196625.52000000005,82818.06,8687.25,73008]
[]
["5.","Sodmenų transportavimo paslaugos","Mato vnt.","Preliminarios paslaugų apimtys"]
[null,null,null,"Kazlų Rūdos regioninis padalinys"]
["Pirkimo objekto dalies numeris",null,null,93]
["12.","Sodmenų transportavimo paslaugos ","km",13412]
["Preliminari 1 metų suma",null,null,{"$f":"+D26*1.5","v":20118}]
["Maksimali POD suma",null,null,{"$f":"+D27*3*1.3","v":78460.2}]

{"sheet":"Kretinga","index":7,"n_rows":28,"n_cols":6,"rows_kept":28,"cut":false,"hidden":false,"merged":[[0,0,0,10],[1,2,1,5],[13,0,14,0],[13,1,14,1],[13,2,14,2],[22,3,22,5],[22,0,23,0],[22,1,23,1],[22,2,23,2],[10,0,10,2],[11,0,11,2],[19,0,19,2],[20,0,20,2],[26,0,26,2],[27,0,27,2],[24,0,24,2],[15,0,15,2],[3,0,3,2]]}
["VĮ Valstybinių miškų urėdijos Kretingos regioninio padalinio informacija apie perkamus miškininkystės paslaugų kiekius 2025 metams"]
["Eil. ","Paslaugų grupės ir paslaugų pavadinimai","Preliminarios paslaugų apimtys"]
[1,"Želdaviečių paruošimas miškų sodinimui, želdinių ir žėlinių priežiūra, jaunuolynų ugdymas, griovių šlaitų ir pagriovių, pakelių, kvartalinių ir ribinių linijų priežiūra","Mato vnt.","Palangos, Juodkrantės, Nidos girininkijos 1","Šernų girininkija 1","Kartenos girininkija 1"]
["Pirkimo objekto dalies numeris",null,null,94,95,96]
["1.","Želdavietės paruošimas miško sodmenų sodinimui šalinant nepageidaujamus medžius, krūmus, žolinę augmeniją","ha",8,8,8]
["2.","Miško želdinių ir žėlinių  priežiūra šalinant žabus ir žolinę augmeniją","ha",30,30,28]
["3.","Jaunuolynų ugdymas ir/ar retinimo kirtimai, negaminant likvidinės medienos ","ha",15,15,15]
["4.","Griovių šlaitų ir pagriovių priežiūra","ha",6,6,6]
["5.","Pakelių priežiūra","km",16,16,17]
["6.","kvartalinių ir ribinių linijų priežūra","km",12,12,12]
["Preliminari 1 metų suma",null,null,{"$f":"+D5*301+D6*263+D7*299+D8*301+D9*53+D10*126","v":18949},{"$f":"+E5*301+E6*263+E7*299+E8*301+E9*53+E10*126","v":18949},18476]
["Maksimali POD suma",null,null,{"$f":"+D11*3*1.3","v":73901.100000000006},{"$f":"+E11*3*1.3","v":73901.100000000006},72056.400000000009]
[]
["3.","Miško sodmenų sodinimas, želdinių ir žėlinių medelių ir jų liemenų apsauga nuo kanopinių žvėrių bei vabzdžių daromos žalos  ","Mato vnt.","Preliminarios paslaugų apimtys"]
[null,null,null,"Palangos, Juodkrantės, Nidos girininkijos 2"]
["Pirkimo objekto dalies numeris",null,null,97]
["8.","Miško atkūrimas, įveisimas ir atsodinimas (medelių ir krūmų sodinimas)","tūkst. vnt.",65]
["9.","Želdinių, žėlinių apsauga nuo kanopinių žvėrių bei vabzdžių daromos žalos ","tūkst. vnt.",95]
["10.","Želdinių, žėlinių ir medelių kamienų apsauga nuo kanopinių žvėrių daromos žalos","tūkst. vnt.",35]
["Preliminari 1 metų suma",null,null,{"$f":"+D17*178+D18*27+D19*390","v":27785}]
["Maksimali POD suma",null,null,{"$f":"+D20*3*1.3","v":108361.5}]
[]
["4.","Želdinių, žėlinių apsauga nuo kanopinių žvėrių daromos žalos, tveriant vielos tinklo tvorą","Mato vnt.","Preliminarios paslaugų apimtys"]
[null,null,null,"Grūšlaukės girininkija","Šernų girininkija 2","Kartenos girininkija 2"]
["Pirkimo objekto dalies numeris",null,null,98,99,100]
["11.","Želdinių, žėlinių apsauga nuo kanopinių žvėrių daromos žalos, tveriant vielos tinklo tvorą ","m",10000,10000,10000]
["Preliminari 1 metų suma",null,null,{"$f":"+D26*1.85","v":18500},{"$f":"+E26*1.85","v":18500},18500]
["Maksimali POD suma",null,null,{"$f":"+D27*3*1.3","v":72150},{"$f":"+E27*3*1.3","v":72150},72150]